fUST/lending_fUST_20250206
["ID","MTS","AMOUNT","RATE_DAILY","PERIOD"]
[351939737,1738853446158,-151.0,0.00014,2]
[351939738,1738853446167,-7013.99751787,0.00014,2]
[351939739,1738853446177,-1000.0,0.00014002,2]
[351939744,1738853446331,-2206.78290726,0.00014025,2]
[351939745,1738853446342,-1000.0,0.00014036,2]
[351939747,1738853446352,-1000.0,0.00014038,2]
[351939749,1738853446362,-2999.3515203,0.00014058,2]
[351939750,1738853446373,-1000.0,0.00014067,2]
[351939751,1738853446392,-1000.0,0.0001407,2]
[351939752,1738853446402,-1000.0,0.00014088,2]
[351939754,1738853446413,-1318.45889411,0.00014099,2]
[351939756,1738853446424,-6161.65484354,0.000141,2]
[351939757,1738853446434,-151.0,0.000141,2]
[351939758,1738853446445,-151.0,0.000141,2]
[351939759,1738853446454,-303.686,0.000141,2]
[351939760,1738853446464,-2470.16225305,0.000141,2]
[351939761,1738853446474,-660.39,0.00014109,2]
[351939762,1738853446484,-500.0,0.00014109,2]
[351939763,1738853446494,-500.0,0.00014109,2]
[351939764,1738853446504,-500.0,0.00014109,2]
[351939765,1738853446514,-500.0,0.00014109,2]
[351939766,1738853446524,-500.0,0.00014109,2]
[351939767,1738853446534,-864.34,0.00014109,2]
[351939768,1738853446545,-151.0,0.00014109,2]
[351939769,1738853446555,-653.85,0.00014109,2]
[351939770,1738853446565,-1409.42,0.00014109,2]
[351939771,1738853446575,-151.0,0.00014109,2]
[351939772,1738853446584,-151.0,0.00014109,2]
[351939773,1738853446594,-500.0,0.00014109,2]
[351939774,1738853446604,-151.0,0.00014109,2]
[351939775,1738853446613,-500.0,0.00014109,2]
[351939776,1738853446623,-500.0,0.00014109,2]
[351939777,1738853446633,-500.0,0.00014109,2]
[351939778,1738853446643,-622.0,0.00014109,2]
[351939779,1738853446652,-848.38,0.00014109,2]
[351939780,1738853446662,-207.92467584,0.00014109,2]
[351939781,1738853446671,-847.82,0.00014109,2]
[351939783,1738853446683,-500.0,0.00014109,2]
[351939785,1738853446695,-500.0,0.00014109,2]
[351939787,1738853446705,-500.0,0.00014109,2]
[351939788,1738853446715,-151.0,0.00014109,2]
[351939789,1738853446726,-500.0,0.00014109,2]
[351939790,1738853446735,-500.0,0.00014109,2]
[351939791,1738853446744,-712.63,0.00014109,2]
[351939792,1738853446754,-750.53,0.00014109,2]
[351939793,1738853446764,-500.0,0.00014109,2]
[351939794,1738853446775,-500.0,0.00014109,2]
[351939795,1738853446785,-500.0,0.00014109,2]
[351939796,1738853446795,-500.0,0.00014109,2]
[351939797,1738853446804,-151.0,0.00014109,2]
[351939798,1738853446814,-1559.74,0.00014109,2]
[351939799,1738853446823,-151.0,0.00014109,2]
[351939800,1738853446833,-500.0,0.00014109,2]
[351939801,1738853446842,-620.85394826,0.00014109,2]
[351939802,1738853446851,-524.14,0.00014109,2]
[351939803,1738853446861,-1569.15,0.00014109,2]
[351939804,1738853446871,-1086.23,0.00014109,2]
[351939805,1738853446881,-595.88,0.00014109,2]
[351939806,1738853446890,-5796.15,0.00014109,2]
[351939807,1738853446899,-151.0,0.00014109,2]
[351939808,1738853446909,-571.02,0.00014109,2]
[351939809,1738853446919,-151.0,0.00014109,2]
[351939810,1738853446928,-151.0,0.00014109,2]
[351939811,1738853446941,-151.0,0.00014109,2]
[351939812,1738853446951,-500.0,0.00014109,2]
[351939813,1738853446961,-1292.8,0.00014109,2]
[351939814,1738853446971,-500.0,0.00014109,2]
[351939815,1738853446981,-151.917224,0.00014109,2]
[351939816,1738853446991,-151.917224,0.00014109,2]
[351939817,1738853447001,-206.959826,0.00014109,2]
[351939818,1738853447011,-500.0,0.00014109,2]
[351939819,1738853447022,-151.0,0.00014109,2]
[351939820,1738853447032,-500.0,0.00014109,2]
[351939821,1738853447042,-500.0,0.00014109,2]
[351939822,1738853447052,-1094.73,0.00014109,2]
[351939823,1738853447063,-217.66061,0.00014109,2]
[351939824,1738853447073,-217.66061,0.00014109,2]
[351939825,1738853447083,-500.0,0.00014109,2]
[351939826,1738853447093,-1410.27,0.00014109,2]
[351939827,1738853447103,-2539.8,0.00014109,2]
[351939828,1738853447112,-500.0,0.00014109,2]
[351939829,1738853447123,-1732.91,0.00014109,2]
[351939830,1738853447134,-639.95,0.00014109,2]
[351939831,1738853447144,-500.0,0.00014109,2]
[351939832,1738853447155,-151.0,0.00014109,2]
[351939833,1738853447165,-151.0,0.00014109,2]
[351939834,1738853447175,-500.0,0.00014109,2]
[351939835,1738853447189,-1126.62,0.00014109,2]
[351939836,1738853447201,-441.5,0.00014109,2]
[351939837,1738853447211,-793.43,0.00014109,2]
[351939838,1738853447222,-151.0,0.00014109,2]
[351939839,1738853447232,-827.21,0.00014109,2]
[351939840,1738853447243,-780.14,0.00014109,2]
[351939841,1738853447255,-1894.12,0.00014109,2]
[351939842,1738853447266,-151.0,0.00014109,2]
[351939843,1738853447277,-500.0,0.00014109,2]
[351939844,1738853447288,-581.44,0.00014109,2]
[351939845,1738853447299,-1284.9,0.00014109,2]
[351939846,1738853447309,-520.68859544,0.00014109,2]
[351939847,1738853447320,-500.0,0.00014109,2]
[351939848,1738853447331,-4157.86,0.00014109,2]
[351939849,1738853447342,-3126.78,0.00014109,2]
[351939850,1738853447353,-397.093741,0.00014109,2]
[351939851,1738853447363,-1065.19,0.00014109,2]
[351939852,1738853447373,-397.093741,0.00014109,2]
[351939853,1738853447383,-6963.41,0.00014109,2]
[351939854,1738853447394,-172.632684,0.00014109,2]
[351939855,1738853447404,-500.0,0.00014109,2]
[351939856,1738853447413,-500.0,0.00014109,2]
[351939857,1738853447423,-151.0,0.00014109,2]
[351939858,1738853447433,-500.0,0.00014109,2]
[351939859,1738853447451,-1016.63,0.00014109,2]
[351939860,1738853447463,-1027.071389,0.00014109,2]
[351939861,1738853447473,-1200.01,0.00014109,2]
[351939862,1738853447484,-13982.56,0.00014109,2]
[351939863,1738853447495,-585.26779649,0.00014109,2]
[351939864,1738853447506,-1027.071389,0.00014109,2]
[351939865,1738853447516,-1306.86,0.00014109,2]
[351939866,1738853447527,-4363.28,0.00014109,2]
[351939867,1738853447538,-234.389468,0.00014109,2]
[351939868,1738853447548,-1001.84,0.00014109,2]
[351939869,1738853447559,-234.389468,0.00014109,2]
[351939870,1738853447569,-500.0,0.00014109,2]
[351939871,1738853447579,-42643.98,0.00014109,2]
[351939872,1738853447590,-151.0,0.00014109,2]
[351939873,1738853447601,-151.0,0.00014109,2]
[351939874,1738853447611,-176.265713,0.00014109,2]
[351939875,1738853447622,-2320.38,0.00014109,2]
[351939876,1738853447632,-500.0,0.00014109,2]
[351939877,1738853447642,-500.0,0.00014109,2]
[351939878,1738853447652,-500.0,0.00014109,2]
[351939879,1738853447662,-500.0,0.00014109,2]
[351939880,1738853447672,-1322.58,0.00014109,2]
[351939881,1738853447687,-500.0,0.00014109,2]
[351939882,1738853447697,-2135.49,0.00014109,2]
[351939883,1738853447707,-2468.47,0.00014109,2]
[351939884,1738853447716,-154.103974,0.00014109,2]
[351939885,1738853447726,-154.103974,0.00014109,2]
[351939886,1738853447736,-1507.93,0.00014109,2]
[351939887,1738853447746,-273.349625,0.00014109,2]
[351939888,1738853447756,-151.0,0.00014109,2]
[351939889,1738853447767,-500.0,0.00014109,2]
[351939890,1738853447778,-273.349625,0.00014109,2]
[351939891,1738853447788,-500.0,0.00014109,2]
[351939892,1738853447798,-1357.54,0.00014109,2]
[351939893,1738853447808,-1206.68,0.00014109,2]
[351939894,1738853447818,-1755.26,0.00014109,2]
[351939895,1738853447828,-713.241668,0.00014109,2]
[351939896,1738853447838,-17470.79,0.00014109,2]
[351939897,1738853447848,-500.0,0.00014109,2]
[351939898,1738853447859,-713.241668,0.00014109,2]
[351939899,1738853447869,-151.0,0.00014109,2]
[351939900,1738853447879,-644.09,0.00014109,2]
[351939901,1738853447890,-500.0,0.00014109,2]
[351939902,1738853447900,-500.0,0.00014109,2]
[351939903,1738853447911,-729.89,0.00014109,2]
[351939904,1738853447921,-2380.35,0.00014109,2]
[351939905,1738853447932,-780.62,0.00014109,2]
[351939906,1738853447945,-3605.2,0.00014109,2]
[351939907,1738853447955,-151.0,0.00014109,2]
[351939908,1738853447965,-151.0,0.00014109,2]
[351939909,1738853447975,-1449.65,0.00014109,2]
[351939910,1738853447985,-3288.75,0.00014109,2]
[351939911,1738853447995,-1602.84,0.00014109,2]
[351939912,1738853448004,-151.0,0.00014109,2]
[351939913,1738853448014,-500.0,0.00014109,2]
[351939914,1738853448024,-703.94,0.00014109,2]
[351939915,1738853448035,-875.81,0.00014109,2]
[351939916,1738853448045,-300.69657918,0.00014109,2]
[351939917,1738853448055,-508.22,0.00014109,2]
[351939918,1738853448066,-2160.78,0.00014109,2]
[351939919,1738853448077,-1089.43,0.00014109,2]
[351939920,1738853448088,-500.0,0.00014109,2]
[351939921,1738853448098,-183.695338,0.00014109,2]
[351939922,1738853448109,-183.695338,0.00014109,2]
[351939923,1738853448119,-955.32,0.00014109,2]
[351939924,1738853448129,-500.0,0.00014109,2]
[351939925,1738853448138,-500.0,0.00014109,2]
[351939926,1738853448149,-500.0,0.00014109,2]
[351939927,1738853448160,-500.0,0.00014109,2]
[351939928,1738853448171,-1410.06,0.00014109,2]
[351939929,1738853448182,-500.0,0.00014109,2]
[351939930,1738853448193,-151.0,0.00014109,2]
[351939931,1738853448204,-500.0,0.00014109,2]
[351939932,1738853448213,-9267.35,0.00014109,2]
[351939933,1738853448224,-1018.31,0.00014109,2]
[351939934,1738853448234,-500.0,0.00014109,2]
[351939935,1738853448244,-4287.37,0.00014109,2]
[351939936,1738853448253,-500.0,0.00014109,2]
[351939937,1738853448263,-921.46,0.00014109,2]
[351939938,1738853448272,-434.1982094,0.0001411,2]
[351939939,1738853448282,-1000.0,0.00014121,2]
[351939940,1738853448291,-1000.0,0.0001413,2]
[351939941,1738853448301,-192.0,0.00014141,2]
[351939942,1738853448311,-1000.0,0.00014152,2]
[351939943,1738853448320,-1000.0,0.00014163,2]
[351939944,1738853448330,-1000.0,0.00014167,2]
[351939945,1738853448340,-218.59072856,0.00014168,2]
[351939946,1738853448350,-1000.0,0.00014169,2]
[351939947,1738853448360,-153.0,0.00014192,2]
[351939948,1738853448370,-153.0,0.00014192,2]
[351939949,1738853448380,-153.0,0.00014192,2]
[351939950,1738853448391,-1000.0,0.00014193,2]
[351939951,1738853448401,-1000.0,0.00014197,2]
[351939952,1738853448410,-223.86837158,0.00014199,2]
[351939953,1738853448420,-1281.97144096,0.00014199,2]
[351939954,1738853448430,-151.0,0.00014199,2]
[351939955,1738853448442,-2277.96,0.00014199,2]
[351939956,1738853448451,-151.0,0.00014199,2]
[351939957,1738853448460,-126742.82179517,0.000142,5]
[351939958,1738853448563,-4614.08523698,0.000142,5]
[351939959,1738853448574,-1722.3396068,0.000142,5]
[351939960,1738853448587,-1497.359927,0.000142,5]
[351939961,1738853448599,-59498.86999334,0.000142,5]
[351939962,1738853448611,-9436.15978919,0.000142,5]
[351939963,1738853448623,-391.96,0.000142,5]
[351939964,1738853448796,-585.07,0.00013698,2]
[351939965,1738853448807,-474.53962287,0.00013757,2]
[351939966,1738853448860,-3216.92967782,0.00013757,2]
[351939967,1738853449447,-354.1375272,0.000134,2]
[351939968,1738853449456,-500.0,0.00013698,2]
[351939969,1738853449467,-232.91058142,0.00013698,2]
[351939970,1738853449477,-4833.99997938,0.00013757,2]
[351939971,1738853449495,-3768.24474778,0.00013757,2]
[351939972,1738853449505,-975.01,0.00013835,2]
[351939973,1738853449515,-256.74525222,0.00013835,2]
[351939974,1738853449948,-53.8279475,0.00013698,2]
[351939975,1738853449959,-446.1720525,0.00013698,2]
[351939976,1738853449969,-500.0,0.00013698,2]
[351939977,1738853449979,-328.32474778,0.00013835,2]
[351939978,1738853449988,-500.0,0.00013835,2]
[351939979,1738853449998,-975.01,0.00013972,2]
[351939980,1738853450007,-585.07,0.00013972,2]
[351939981,1738853450017,-470.7,0.00013972,2]
[351939982,1738853450026,-151.0,0.00013972,2]
[351939983,1738853450036,-975.01,0.00014109,2]
[351939984,1738853450045,-585.07,0.00014109,2]
[351939985,1738853450055,-2900.52956806,0.000142,5]
[351939986,1738853450067,-1261.33027101,0.000142,5]
[351939987,1738853452603,158.346914,0.00013283,61]
[351939988,1738853452987,158.346914,0.00013283,120]
[351939990,1738853606239,276.54304293,8e-05,2]
[351939991,1738853606272,9723.45695707,8e-05,2]
[351939992,1738853649629,289.8435,0.0001919,120]
[351939993,1738854310781,173.99588548,0.0001,10]
[351939994,1738854350110,-652.68,0.00010959,2]
[351939995,1738854350130,-223.57083959,0.00012031,2]
[351939996,1738854436134,-1597.46518341,0.00012031,2]
[351939997,1738854436164,-186.58877769,0.0001239,2]
[351939998,1738854441111,-63.41122231,0.0001239,2]
[351939999,1738854441138,-300.0,0.00012484,2]
[351940000,1738854441165,-80.48623769,0.00012485,2]
[351940001,1738854545104,-980.0,0.0001141,2]
[351940002,1738854548130,-20.0,0.0001141,2]
[351940003,1738854548153,-356.15186821,0.00012359,2]
[351940004,1738854550182,-304.74053179,0.00012359,2]
[351940005,1738854550205,-300.0,0.00012484,2]
[351940006,1738854550228,-24284.91726821,0.00012485,2]
[351940007,1738854555117,-490.0,0.00012485,2]
[351940103,1738854632938,-44.5964941,0.00012485,2]
[351940106,1738854632948,-444.4735059,0.00013,13]
[351940108,1738854632960,-555.5264941,0.00013,13]
[351940110,1738854632970,-7438.69753278,0.00013125,2]
[351940112,1738854632980,-800.0,0.0001315,2]
[351940114,1738854632990,-354.5958847,0.00013205,2]
[351940116,1738854633000,-158.346914,0.00013283,2]
[351940118,1738854633010,-300.0,0.00013299,2]
[351940120,1738854633020,-215.7447597,0.000133,2]
[351940122,1738854633030,-1000.0,0.0001351,2]
[351940124,1738854633043,-357.33897753,0.00013598,2]
[351940126,1738854633053,-1054.76711532,0.00013598,2]
[351940128,1738854633064,-215.7447597,0.000136,2]
[351940130,1738854633074,-1054.76711528,0.00013667,2]
[351940131,1738854633091,-1395.48274511,0.00013668,2]
[351940132,1738854633102,-500.0,0.00013673,2]
[351940133,1738854633112,-500.0,0.00013673,2]
[351940134,1738854633122,-500.0,0.00013673,2]
[351940135,1738854633132,-500.0,0.00013673,2]
[351940136,1738854633145,-250.53688382,0.0001369,2]
[351940137,1738854633155,-500.0,0.00013697,2]
[351940138,1738854633165,-166.87432566,0.00013697,2]
[351940139,1738854633175,-500.0,0.00013697,2]
[351940140,1738854633186,-500.0,0.00013697,2]
[351940141,1738854633196,-500.0,0.00013697,2]
[351940142,1738854633206,-500.0,0.00013697,2]
[351940143,1738854633216,-500.0,0.00013697,2]
[351940144,1738854633226,-500.0,0.00013697,2]
[351940145,1738854633236,-249.51389839,0.00013697,2]
[351940146,1738854633246,-500.0,0.00013697,2]
[351940147,1738854633256,-500.0,0.00013697,2]
[351940148,1738854633265,-524.47403826,0.00013697,2]
[351940149,1738854633275,-500.0,0.00013698,2]
[351940150,1738854633285,-500.0,0.00013698,2]
[351940151,1738854633295,-330.65962034,0.00013698,2]
[351940152,1738854633305,-505.77411646,0.00013698,2]
[351940153,1738854633315,-500.0,0.00013698,2]
[351940154,1738854633324,-138.36359643,0.00013698,2]
[351940155,1738854633337,-361.63640357,0.00013698,2]
[351940156,1738854633347,-500.0,0.00013698,2]
[351940157,1738854633357,-501.32512999,0.00013698,2]
[351940158,1738854633366,-500.0,0.00013698,2]
[351940159,1738854633376,-500.0,0.00013698,2]
[351940160,1738854633386,-504.27543403,0.00013698,2]
[351940161,1738854633399,-500.0,0.00013698,2]
[351940162,1738854633408,-176.46804501,0.00013698,2]
[351940163,1738854633421,-323.53195499,0.00013698,2]
[351940164,1738854633431,-500.0,0.00013698,2]
[351940165,1738854633441,-480.67277355,0.00013698,2]
[351940166,1738854633450,-356.11560499,0.00013698,2]
[351940167,1738854633461,-500.0,0.00013698,2]
[351940168,1738854633471,-501.73770138,0.00013698,2]
[351940169,1738854633480,-378.02140972,0.00013698,2]
[351940170,1738854633490,-500.0,0.00013698,2]
[351940171,1738854633501,-612.5947295,0.00013698,2]
[351940172,1738854633511,-500.0,0.00013698,2]
[351940173,1738854633521,-500.0,0.00013698,2]
[351940174,1738854633531,-500.0,0.00013698,2]
[351940175,1738854633540,-567.58579676,0.00013698,2]
[351940176,1738854633550,-500.0,0.00013698,2]
[351940177,1738854633560,-504.26063344,0.00013698,2]
[351940178,1738854633570,-500.0,0.00013698,2]
[351940179,1738854633580,-503.56297778,0.00013698,2]
[351940180,1738854633590,-500.0,0.00013698,2]
[351940181,1738854633600,-500.0,0.00013698,2]
[351940182,1738854633610,-838.05,0.00013698,2]
[351940183,1738854633620,-247.92187235,0.00013698,2]
[351940184,1738854633631,-502.63066078,0.00013698,2]
[351940185,1738854633643,-501.93434732,0.00013698,2]
[351940186,1738854633653,-505.59170368,0.00013698,2]
[351940187,1738854633663,-500.0,0.00013698,2]
[351940188,1738854633673,-500.0,0.00013698,2]
[351940189,1738854633683,-500.0,0.00013698,2]
[351940190,1738854633693,-500.0,0.00013698,2]
[351940191,1738854633703,-500.0,0.00013698,2]
[351940192,1738854633713,-501.09590613,0.00013698,2]
[351940193,1738854633723,-500.0,0.00013698,2]
[351940194,1738854633733,-248.80106219,0.00013698,2]
[351940195,1738854633743,-523.32781214,0.00013698,2]
[351940196,1738854633754,-500.0,0.00013698,2]
[351940197,1738854633764,-500.52830737,0.00013698,2]
[351940198,1738854633774,-565.41437427,0.00013698,2]
[351940199,1738854633785,-500.0,0.00013698,2]
[351940200,1738854633795,-500.0,0.00013698,2]
[351940201,1738854633805,-500.0,0.00013698,2]
[351940202,1738854633815,-500.0,0.00013698,2]
[351940203,1738854633825,-500.0,0.00013698,2]
[351940204,1738854633835,-500.0,0.00013698,2]
[351940205,1738854633845,-500.0,0.00013698,2]
[351940206,1738854633855,-586.54,0.00013698,2]
[351940207,1738854633866,-500.0,0.00013698,2]
[351940208,1738854633876,-500.0,0.00013698,2]
[351940209,1738854633886,-500.0,0.00013698,2]
[351940210,1738854633899,-500.0,0.00013698,2]
[351940211,1738854633909,-500.0,0.00013698,2]
[351940212,1738854633920,-230.75280095,0.00013698,2]
[351940213,1738854633930,-500.0,0.00013698,2]
[351940214,1738854633941,-504.81717142,0.00013698,2]
[351940215,1738854633951,-500.0,0.00013698,2]
[351940216,1738854633962,-500.0,0.00013698,2]
[351940217,1738854633972,-500.0,0.00013698,2]
[351940218,1738854633982,-500.0,0.00013698,2]
[351940219,1738854633993,-626.10853109,0.00013698,2]
[351940220,1738854634004,-500.0,0.00013698,2]
[351940221,1738854634014,-504.65943453,0.00013698,2]
[351940222,1738854634025,-502.8295371,0.00013698,2]
[351940223,1738854634035,-506.49318269,0.00013698,2]
[351940224,1738854634045,-410.91778591,0.00013698,2]
[351940225,1738854634056,-500.0,0.00013698,2]
[351940226,1738854634066,-647.74345527,0.00013698,2]
[351940227,1738854634078,-521.5353481,0.00013698,2]
[351940228,1738854634091,-500.0,0.00013698,2]
[351940229,1738854634101,-500.0,0.00013698,2]
[351940230,1738854634111,-500.0,0.00013698,2]
[351940231,1738854634121,-500.0,0.00013698,2]
[351940232,1738854634137,-772.67,0.00013698,2]
[351940233,1738854634156,-500.0,0.00013698,2]
[351940234,1738854634171,-500.0,0.00013698,2]
[351940235,1738854634185,-500.0,0.00013698,2]
[351940236,1738854634198,-500.0,0.00013698,2]
[351940237,1738854634210,-500.0,0.00013698,2]
[351940238,1738854634225,-500.0,0.00013698,2]
[351940239,1738854634239,-500.0,0.00013698,2]
[351940240,1738854634252,-500.0,0.00013698,2]
[351940241,1738854634268,-500.0,0.00013698,2]
[351940242,1738854634283,-585.64,0.00013698,2]
[351940243,1738854634296,-502.19082117,0.00013698,2]
[351940244,1738854634309,-500.0,0.00013698,2]
[351940245,1738854634323,-376.87501903,0.00013698,2]
[351940246,1738854634337,-500.0,0.00013698,2]
[351940247,1738854634350,-500.0,0.00013698,2]
[351940248,1738854634363,-500.0,0.00013698,2]
[351940249,1738854634392,-500.0,0.00013698,2]
[351940250,1738854634408,-500.0,0.00013698,2]
[351940251,1738854634428,-500.0,0.00013698,2]
[351940252,1738854634444,-525.65066758,0.00013698,2]
[351940253,1738854634458,-500.0,0.00013698,2]
[351940254,1738854634472,-501.44398204,0.00013698,2]
[351940255,1738854634484,-500.0,0.00013698,2]
[351940256,1738854634495,-500.0,0.00013698,2]
[351940257,1738854634509,-1080.04,0.00013698,2]
[351940258,1738854634522,-1350.69,0.00013698,2]
[351940259,1738854634536,-500.90073657,0.00013698,2]
[351940260,1738854634551,-500.0,0.00013698,2]
[351940261,1738854634566,-1389.25,0.00013698,2]
[351940262,1738854634579,-500.0,0.00013698,2]
[351940263,1738854634594,-500.0,0.00013698,2]
[351940264,1738854634607,-500.0,0.00013698,2]
[351940265,1738854634622,-500.0,0.00013698,2]
[351940266,1738854634637,-500.0,0.00013698,2]
[351940267,1738854634650,-500.0,0.00013698,2]
[351940268,1738854634661,-500.0,0.00013698,2]
[351940269,1738854634671,-577.72,0.00013698,2]
[351940270,1738854634682,-500.0,0.00013698,2]
[351940271,1738854634694,-500.0,0.00013698,2]
[351940272,1738854634708,-500.0,0.00013698,2]
[351940273,1738854634723,-500.0,0.00013698,2]
[351940274,1738854634738,-500.0,0.00013698,2]
[351940275,1738854634749,-500.0,0.00013698,2]
[351940276,1738854634761,-500.0,0.00013698,2]
[351940277,1738854634773,-500.0,0.00013698,2]
[351940278,1738854634785,-500.0,0.00013698,2]
[351940279,1738854634801,-500.0,0.00013698,2]
[351940280,1738854634813,-500.0,0.00013698,2]
[351940281,1738854634824,-500.0,0.00013698,2]
[351940282,1738854634836,-500.0,0.00013698,2]
[351940283,1738854634846,-500.0,0.00013698,2]
[351940284,1738854634858,-503.46361273,0.00013698,2]
[351940285,1738854634870,-246.20056973,0.00013698,2]
[351940286,1738854634882,-500.0,0.00013698,2]
[351940287,1738854634895,-500.0,0.00013698,2]
[351940288,1738854634916,-523.170482,0.00013698,2]
[351940289,1738854634929,-529.52977285,0.00013698,2]
[351940290,1738854634942,-500.0,0.00013698,2]
[351940291,1738854634955,-500.0,0.00013698,2]
[351940292,1738854634967,-500.0,0.00013698,2]
[351940293,1738854634981,-500.0,0.00013698,2]
[351940294,1738854634994,-500.0,0.00013698,2]
[351940295,1738854635006,-991.25,0.00013698,2]
[351940296,1738854635019,-500.0,0.00013698,2]
[351940297,1738854635031,-511.474695,0.00013698,2]
[351940298,1738854635048,-418.73119519,0.00013698,2]
[351940299,1738854635062,-500.0,0.00013698,2]
[351940300,1738854635080,-500.0,0.00013698,2]
[351940301,1738854635096,-500.0,0.00013698,2]
[351940302,1738854635107,-510.69850912,0.00013698,2]
[351940303,1738854635120,-500.0,0.00013698,2]
[351940304,1738854635133,-500.0,0.00013698,2]
[351940305,1738854635147,-500.0,0.00013698,2]
[351940306,1738854635158,-500.0,0.00013698,2]
[351940307,1738854635171,-500.0,0.00013698,2]
[351940308,1738854635183,-500.0,0.00013698,2]
[351940309,1738854635194,-500.0,0.00013698,2]
[351940310,1738854635206,-500.0,0.00013698,2]
[351940311,1738854635217,-500.0,0.00013698,2]
[351940312,1738854635229,-500.40677505,0.00013698,2]
[351940313,1738854635240,-501.60542401,0.00013698,2]
[351940314,1738854635252,-500.0,0.00013698,2]
[351940315,1738854635263,-500.0,0.00013698,2]
[351940316,1738854635274,-500.0,0.00013698,2]
[351940317,1738854635285,-829.21,0.00013698,2]
[351940318,1738854635297,-500.0,0.00013698,2]
[351940319,1738854635308,-500.0,0.00013698,2]
[351940320,1738854635319,-511.311713,0.00013698,2]
[351940321,1738854635331,-255.37899996,0.00013698,2]
[351940322,1738854635342,-500.0,0.00013698,2]
[351940323,1738854635353,-500.0,0.00013698,2]
[351940324,1738854635366,-500.0,0.00013698,2]
[351940325,1738854635377,-501.13974454,0.00013698,2]
[351940326,1738854635389,-500.0,0.00013698,2]
[351940327,1738854635406,-500.0,0.00013698,2]
[351940328,1738854635418,-500.0,0.00013698,2]
[351940329,1738854635429,-500.0,0.00013698,2]
[351940330,1738854635441,-500.0,0.00013698,2]
[351940331,1738854635452,-405.4662972,0.00013698,2]
[351940332,1738854635464,-500.0,0.00013698,2]
[351940333,1738854635476,-500.0,0.00013698,2]
[351940334,1738854635488,-500.0,0.00013698,2]
[351940335,1738854635501,-500.0,0.00013698,2]
[351940336,1738854635514,-500.0,0.00013698,2]
[351940337,1738854635525,-500.0,0.00013698,2]
[351940338,1738854635538,-500.0,0.00013698,2]
[351940339,1738854635550,-700.25,0.00013698,2]
[351940340,1738854635562,-338.57496787,0.00013698,2]
[351940341,1738854635581,-613.27,0.00013698,2]
[351940342,1738854635593,-422.17491422,0.00013698,2]
[351940343,1738854635606,-500.0,0.00013698,2]
[351940344,1738854635617,-500.0,0.00013698,2]
[351940345,1738854635629,-500.0,0.00013698,2]
[351940346,1738854635646,-500.0,0.00013698,2]
[351940347,1738854635659,-500.0,0.00013698,2]
[351940348,1738854635670,-502.66622654,0.00013698,2]
[351940349,1738854635682,-500.0,0.00013698,2]
[351940350,1738854635694,-500.0,0.00013698,2]
[351940351,1738854635707,-501.24955235,0.00013698,2]
[351940352,1738854635719,-500.0,0.00013698,2]
[351940353,1738854635730,-500.0,0.00013698,2]
[351940354,1738854635742,-500.0,0.00013698,2]
[351940355,1738854635754,-500.0,0.00013698,2]
[351940356,1738854635766,-500.0,0.00013698,2]
[351940357,1738854635778,-500.0,0.00013698,2]